bitfinex/quotes_ETHUSD_20220220
["timestamp","ask_amount","ask_price","bid_price","bid_amount"]
[1645375250995,1.60813139,2641.7,2640.9,0.05]
[1645375251193,1.60813139,2641.7,2641.3,0.00118938]
[1645375251396,1.60813139,2641.9,2641.3,0.00118938]
[1645375251599,0.1892,2642.4,2641.3,0.00118938]
[1645375251792,1.60808029,2642.3,2641.3,0.00118938]
[1645375251995,3.6892,2642.5,2641.3,0.00118938]
[1645375252196,3.6892,2642.5,2640.9,0.05]
[1645375252197,1.60811072,2642.4,2640.9,0.05]
[1645375252449,1.60811072,2642.4,2641.7,0.00218245]
[1645375252450,0.00218211,2642.1,2641.7,0.00218245]
[1645375252645,0.00218211,2642.1,2641.7,8.245e-05]
[1645375252848,0.00218211,2642.1,2640.3,3.1226]
[1645375252849,5.0,2641.8,2640.0,0.05]
[1645375253049,0.01226017,2640.8,2640.0,0.05]
[1645375253248,0.01226017,2640.8,2638.4,0.1893]
[1645375253249,0.3772,2640.1,2638.4,0.1893]
[1645375253449,5.0,2639.3,2637.0,1.8022972]
[1645375253647,3.98946801,2639.2,2637.8,0.1394]
[1645375253849,3.98946801,2639.2,2637.6,1.04210763]
[1645375253850,5.48710551,2639.1,2637.6,0.89210763]
[1645375254047,0.1895,2639.0,2637.6,0.89210763]
[1645375254250,5.0,2638.3,2637.0,1.8022972]
[1645375254455,0.1895,2638.2,2637.0,1.8022972]
[1645375254646,0.1895,2638.7,2637.0,1.8022972]
[1645375254845,0.5,2638.7,2637.0,1.7793193]
[1645375255246,0.1895,2638.6,2638.2,0.95622232]
[1645375255447,0.25,2638.9,2638.2,0.95622232]
[1645375255645,8.6895,2639.5,2638.2,0.95622232]
[1645375255948,1.61003678,2639.4,2638.2,0.95622232]
[1645375256214,3.6894,2639.3,2638.2,0.95622232]
[1645375256398,0.1894,2639.7,2638.8,0.9748556]
[1645375256596,3.6894,2639.7,2637.2,1.1894]
[1645375256798,0.13819997,2639.6,2637.2,3.08577]
[1645375256997,0.1895,2639.5,2637.5,5.0]
[1645375257296,0.1895,2639.5,2638.3,0.00242499]
[1645375257701,0.1895,2639.5,2638.4,1.06740318]
[1645375258298,1.61005711,2639.4,2638.4,1.06740318]
[1645375258498,3.6894,2639.3,2638.8,0.00242477]
[1645375258698,0.1894,2639.3,2638.8,0.00242477]
[1645375258901,0.1894,2639.4,2638.8,0.00242477]
[1645375259098,0.1894,2639.5,2638.8,0.00242477]
[1645375259400,0.94847,2639.4,2637.6,0.98259476]
[1645375259601,0.94847,2639.4,2637.1,2.3769]
[1645375259602,0.94852,2639.2,2637.1,2.3769]
[1645375259800,3.6895,2639.1,2639.0,0.00242471]
[1645375260051,0.1895,2639.1,2639.0,0.00242471]
[1645375260252,0.1894,2639.5,2639.0,0.00242471]
[1645375260648,0.1894,2639.5,2639.0,0.91687987]
[1645375261052,0.13819997,2639.6,2639.0,0.91687987]
[1645375261247,0.13819997,2639.6,2638.9,0.00242473]
[1645375261849,0.13819997,2639.6,2638.1,0.01291342]
[1645375262051,0.13819997,2639.6,2639.1,0.00221319]
[1645375262954,0.13819997,2639.6,2638.8,0.00252112]
[1645375263349,0.13819997,2639.6,2639.2,0.00221316]
[1645375263790,0.1894,2639.5,2639.2,0.00221316]
[1645375264090,0.1894,2639.5,2638.8,0.00252112]
[1645375264490,0.1894,2639.5,2639.2,0.00221316]
[1645375265292,0.7759853,2638.5,2638.4,11.52]
[1645375265497,0.13819997,2639.6,2638.4,11.52]
[1645375265794,0.1895,2640.2,2639.2,0.00221316]
[1645375266111,0.25,2640.3,2639.9,0.90934815]
[1645375266298,3.5,2641.1,2639.9,0.90934815]
[1645375266492,0.1892,2640.6,2639.9,0.90934815]
[1645375266691,5.0354,2641.6,2639.9,0.90934815]
[1645375266692,0.1892,2641.0,2639.9,0.90934815]
[1645375266890,0.00130386,2640.2,2639.9,0.90934815]
[1645375267542,0.00130386,2640.2,2639.0,0.1892]
[1645375267748,0.1892,2640.9,2638.7,0.1892]
[1645375267749,0.0126319,2639.9,2638.7,0.1892]
[1645375267946,0.0987,2637.8,2636.8,0.01286458]
[1645375268153,0.0987,2637.8,2637.6,0.1894]
[1645375268450,0.0987,2637.8,2636.7,0.1895]
[1645375268641,0.0987,2637.8,2637.7,1.13841081]
[1645375269243,0.25,2638.5,2637.7,1.13841081]
[1645375269642,3.5,2639.4,2637.7,1.13841081]
[1645375269643,0.00130334,2638.9,2637.7,1.13841081]
[1645375269945,0.00130334,2638.9,2638.7,0.86417837]
[1645375270145,0.00130334,2638.9,2637.7,11.52]
[1645375270344,0.00130334,2638.9,2637.7,11.27]
[1645375270544,0.00130334,2638.9,2637.8,1.0]
[1645375270749,0.00224641,2638.9,2638.7,0.00224664]
[1645375271602,0.1895,2639.4,2637.8,12.27]
[1645375271808,0.00224641,2638.9,2638.7,0.00224664]
[1645375272907,0.25,2639.6,2637.9,0.1894]
[1645375273105,0.25,2639.6,2637.1,6.07064]
[1645375273106,0.00224641,2638.9,2638.7,0.00224664]
[1645375273906,0.1894,2639.5,2637.9,11.52]
[1645375274103,0.1894,2639.5,2638.8,0.95650614]
[1645375274305,0.00222856,2638.9,2638.8,0.95650614]
[1645375274940,0.00222856,2638.9,2638.7,0.00222878]
[1645375275343,0.25,2639.1,2637.7,1.0]
[1645375275542,0.25,2639.1,2638.7,0.00112894]
[1645375275749,0.15608675,2639.2,2638.7,0.00112894]
[1645375275948,1.5,2639.3,2638.7,0.00112894]
[1645375276145,1.5,2639.3,2638.9,0.92280435]
[1645375277743,0.00131836,2639.2,2638.9,0.92280435]
[1645375277946,0.25131836,2639.2,2638.9,0.92280435]
[1645375278244,0.25131836,2639.2,2639.0,11.52]
[1645375278448,0.25131836,2639.2,2638.9,0.92280435]
[1645375278705,0.25,2639.2,2638.9,0.92280435]
[1645375279096,0.25243733,2639.2,2638.9,0.92280435]
[1645375279298,0.20243733,2639.2,2638.9,1.22280435]
[1645375279597,0.20243733,2639.2,2638.9,0.92280435]
[1645375280195,0.2,2639.2,2638.9,0.92280435]
[1645375280397,0.20243733,2639.2,2638.9,0.92280435]
[1645375280595,0.20243733,2639.2,2638.9,12.44280435]
[1645375281200,0.2,2639.2,2638.9,12.44280435]
[1645375281398,0.2,2639.2,2638.9,12.74280435]
[1645375281399,0.20222208,2639.2,2638.9,12.74280435]
[1645375281596,0.00222208,2639.2,2639.0,12.52]
[1645375281798,0.00222208,2639.2,2639.0,12.82]
[1645375282097,0.25,2639.6,2639.1,11.52]
[1645375282296,3.5,2641.0,2639.1,11.52]
[1645375282549,8.2152,2641.2,2639.1,11.52]
[1645375282550,0.1892,2640.9,2639.1,11.82250835]
[1645375282846,0.1892,2641.0,2639.3,11.52]
[1645375283244,0.1892,2641.0,2639.3,11.82]
[1645375283444,0.1892,2641.0,2639.3,11.52]
[1645375283647,0.1892,2641.0,2639.3,12.12]
[1645375283848,0.1892,2641.0,2640.5,1.11308553]
[1645375284048,1.46139057,2640.3,2639.5,11.52]
[1645375284248,1.46139057,2640.3,2639.2,12.46756]
[1645375284551,1.46139057,2640.3,2639.2,11.52]
[1645375285147,0.00243769,2639.9,2639.2,11.52]
[1645375285346,0.00243769,2639.9,2639.8,0.9264361]
[1645375285748,0.00243769,2639.9,2638.9,0.00250835]
[1645375285951,0.00243769,2639.9,2638.7,11.52494712]
[1645375286197,3.6894,2640.2,2638.8,0.00250835]
[1645375286402,0.00243765,2640.0,2638.8,0.00250835]
[1645375286800,0.00243765,2640.0,2639.5,0.85846217]
[1645375287201,1.46139057,2640.3,2639.5,0.85846217]
[1645375287599,0.00243769,2639.9,2639.5,0.85846217]
[1645375288404,1.46139057,2640.3,2639.5,0.85846217]
[1645375288800,0.00243771,2639.8,2639.5,0.85846217]
[1645375289603,0.1894,2640.2,2639.5,0.85846217]
[1645375289801,1.60932937,2640.1,2639.5,0.85846217]
[1645375290043,0.00243774,2639.8,2639.5,0.85846217]
[1645375292146,1.60929632,2640.2,2639.5,0.85846217]
[1645375292343,0.00243494,2639.8,2639.5,0.85846217]
[1645375293245,1.60929632,2640.2,2639.5,0.85846217]
[1645375293802,0.00243494,2639.8,2639.5,0.85846217]
[1645375294205,0.00243494,2639.8,2639.6,11.47]
[1645375294397,1.46139057,2640.3,2639.6,11.77]
[1645375294597,1.46139057,2640.3,2639.8,11.47]
[1645375294797,0.25,2640.5,2640.0,11.47]
[1645375294996,4.20196925,2641.1,2640.1,1.12221752]
[1645375295195,1.60889943,2641.0,2640.1,1.12221752]
[1645375295596,1.60889943,2640.9,2640.1,1.12221752]
[1645375295796,1.60889943,2640.8,2640.1,1.12221752]
[1645375295995,1.60889943,2640.7,2640.1,1.12221752]
[1645375296195,1.60889943,2640.6,2640.1,12.64221752]
[1645375296394,0.1892,2641.2,2640.5,0.87087329]
[1645375296595,1.60878877,2641.1,2640.1,11.82]
[1645375297097,1.61122221,2641.0,2640.3,11.52]
[1645375297299,1.61122221,2641.0,2640.5,11.52]
[1645375297551,0.25,2641.6,2640.7,11.52]
[1645375297752,0.70196925,2641.9,2640.7,12.12]
[1645375297948,0.70196925,2642.0,2640.9,11.52]
[1645375298149,0.70196925,2641.9,2641.3,1.01979076]
[1645375298848,0.70196925,2642.0,2641.3,1.01979076]
[1645375299151,0.89116925,2642.1,2641.3,1.01979076]
[1645375299353,0.1892,2642.1,2641.4,11.52]
[1645375299550,0.25,2642.2,2641.3,1.01979076]
[1645375299853,0.95196925,2642.2,2641.3,1.01979076]
[1645375300048,0.1892,2642.1,2641.3,1.01979076]
[1645375300649,0.25,2642.2,2641.3,1.01979076]
[1645375300849,0.2,2642.2,2641.3,1.01979076]
[1645375301048,0.70196925,2642.4,2641.3,1.01979076]
[1645375301295,0.70196925,2642.4,2641.7,1.12960173]
[1645375301905,0.84359916,2642.6,2641.7,1.12960173]
[1645375302100,0.14162991,2642.6,2641.7,1.12960173]
[1645375302698,0.84359916,2642.6,2641.2,11.52]
[1645375302900,0.84359916,2642.6,2641.1,3.9946]
[1645375303300,0.00109753,2642.3,2641.1,3.9946]
[1645375303502,0.00109753,2642.3,2640.9,9.3694]
[1645375303699,0.00109753,2642.3,2640.9,16.2123]
[1645375303898,0.00109753,2642.3,2641.3,1.01344333]
[1645375304099,0.89116925,2642.4,2641.3,1.01344333]
[1645375304302,0.0010973,2642.3,2640.9,12.7123]
[1645375304509,0.70196925,2642.2,2640.5,3.2744]
[1645375304705,0.70196925,2642.0,2640.5,6.7744]
[1645375304952,5.70196925,2642.1,2640.5,6.7744]
[1645375305148,5.70196925,2642.1,2640.5,3.6892]
[1645375305348,1.70196925,2642.0,2640.5,3.6892]
[1645375305545,0.1892,2641.9,2640.6,2.41525746]
[1645375306047,0.70196925,2642.0,2640.6,2.41525746]
[1645375306048,1.70196925,2642.0,2640.6,2.41525746]
[1645375306349,0.70196925,2642.0,2640.6,2.41525746]
[1645375306546,0.1892,2641.9,2640.6,0.69931684]
[1645375306748,1.70196925,2642.1,2640.6,0.69931684]
[1645375306749,0.1892,2642.0,2640.6,0.69931684]
[1645375306946,0.70196925,2641.9,2640.6,0.69931684]
[1645375307151,0.89116925,2641.8,2640.6,0.69931684]
[1645375307548,0.1892,2641.8,2640.6,0.69931684]
[1645375308794,0.89116925,2642.0,2640.6,0.69931684]
[1645375309796,0.1892,2642.0,2640.6,0.69931684]
[1645375310591,0.1892,2642.0,2641.0,1.14067675]
[1645375311593,0.1892,2642.1,2641.0,1.14067675]
[1645375311793,0.1392,2642.1,2640.3,9.0222388]
[1645375311999,0.1392,2642.1,2638.2,0.00250835]
[1645375312000,15.0,2640.4,2638.2,0.00250835]
[1645375312201,0.08611616,2640.6,2636.7,0.5]
[1645375312202,0.19756716,2637.8,2636.7,0.5]
[1645375312475,0.19756716,2637.8,2637.1,0.98401598]
[1645375312476,1.65162,2637.6,2637.1,0.98401598]
[1645375312654,9.20021182,2636.5,2635.9,34.62190652]
[1645375312855,0.9479,2636.5,2635.9,24.30211488]
[1645375313057,1.79112,2636.4,2636.0,0.04490545]
[1645375313252,1.124,2636.1,2635.9,15.09514847]
[1645375313455,1.124,2636.1,2635.3,0.1077267]
[1645375313657,1.124,2635.9,2635.3,0.1077267]
[1645375313855,1.60162,2636.0,2635.5,5.0]
[1645375313856,1.124,2635.8,2635.5,5.0]
[1645375314057,1.124,2635.8,2635.4,0.92240574]
[1645375314058,1.85162,2635.8,2635.4,0.92240574]
[1645375314253,0.25,2636.6,2635.7,0.01222242]
[1645375314451,1.5,2636.9,2636.2,0.84193273]
[1645375314653,0.25,2636.5,2635.7,0.01222242]
[1645375314855,1.5,2636.9,2635.6,0.00228232]
[1645375315158,0.25,2636.8,2635.2,5.0]
[1645375315551,0.25,2636.8,2636.0,0.002293]
[1645375315552,3.75,2636.8,2636.0,0.002293]
[1645375315752,0.25,2636.8,2636.0,0.002293]
[1645375316052,0.25,2636.7,2636.0,0.002293]
[1645375316300,0.25,2636.7,2635.7,1.07882127]
[1645375316501,0.25,2636.6,2635.7,1.07882127]
[1645375316699,0.25,2636.6,2636.3,0.00229289]
[1645375316902,3.6895,2637.1,2636.3,0.00229289]
[1645375316903,0.25,2636.5,2636.3,0.00229289]
[1645375317300,0.25,2636.4,2636.3,0.00229289]
[1645375317500,0.25,2636.4,2636.1,0.93007708]
[1645375317706,3.6895,2637.1,2636.1,0.93007708]
[1645375317904,0.1895,2637.1,2636.3,0.00226184]
[1645375318103,0.25,2637.0,2636.3,0.00226184]
[1645375318303,0.1895,2636.9,2636.3,0.00226184]
[1645375318704,0.4395,2636.9,2635.3,0.1077267]
[1645375318903,3.5,2636.8,2635.3,0.1077267]
[1645375319208,0.4395,2636.9,2635.3,0.1077267]
[1645375319209,0.25,2636.7,2636.5,0.00225096]
[1645375319604,0.1895,2637.1,2636.5,0.00225096]
[1645375319605,0.4395,2636.6,2636.5,0.00225096]
[1645375320053,0.4395,2636.6,2635.9,1.1621207]
[1645375320252,0.25,2636.6,2635.9,1.1621207]
[1645375320450,0.25,2636.5,2636.4,0.00225097]
[1645375320851,0.25,2637.0,2636.4,0.00225097]
[1645375321047,0.25,2636.5,2636.4,0.00225097]
[1645375321246,0.25,2637.0,2635.9,1.1621207]
[1645375321446,0.25,2637.0,2636.3,1.01273951]
[1645375321647,0.1896,2637.1,2636.6,0.00225582]
[1645375321847,0.25,2637.0,2636.6,0.00225582]
[1645375322447,0.25,2636.9,2635.6,11.52]
[1645375322647,0.25,2636.9,2636.7,0.00225579]
[1645375322850,0.25,2636.8,2636.7,0.00225579]
[1645375323699,0.25,2636.8,2636.1,0.98836836]
[1645375323899,0.25,2636.8,2636.6,0.00225508]
[1645375324098,0.25,2636.7,2636.6,0.00225508]
[1645375324801,0.25,2636.7,2636.1,0.98836836]
[1645375325000,0.25,2637.2,2636.1,0.98836836]
[1645375325207,0.1896,2637.6,2636.5,0.00225512]
[1645375325407,0.25,2637.7,2636.5,0.00225512]
[1645375325603,0.5,2638.6,2636.7,16.52]
[1645375325604,3.5,2638.5,2636.7,16.52]
[1645375325803,0.1896,2638.2,2636.9,11.52]
[1645375326002,0.1896,2638.2,2637.4,1.18208616]
[1645375326003,3.6896,2638.2,2637.4,1.18208616]
[1645375326201,0.1896,2638.2,2637.4,1.18208616]
[1645375326402,3.5,2638.5,2637.5,0.00225479]
[1645375326606,0.00225363,2638.8,2637.1,0.0428475]
[1645375326804,1.80259422,2638.8,2637.1,11.8628475]
[1645375327003,5.11084059,2638.7,2637.1,11.8628475]
[1645375327205,1.80034059,2638.6,2637.1,11.85382697]
[1645375327458,5.11084059,2638.5,2637.1,11.52]
[1645375327750,0.1895,2638.4,2637.2,0.00247535]
[1645375327954,0.1895,2638.7,2637.2,0.00247535]
[1645375328149,1.61089263,2638.6,2637.2,0.00247535]
[1645375328351,0.1895,2638.5,2637.2,0.00247535]
[1645375328551,0.1895,2638.8,2637.3,11.52]
[1645375328751,0.1895,2638.8,2637.4,0.02052323]
[1645375329051,0.1895,2638.8,2638.1,1.15996405]
[1645375329251,0.1895,2638.8,2637.4,0.02052323]
[1645375329252,1.41725328,2637.7,2637.4,0.02052323]
[1645375329651,1.41725328,2637.7,2637.4,0.00247535]
[1645375329951,1.41725328,2637.7,2637.4,0.00225936]
[1645375330156,1.41725328,2637.7,2637.5,11.52]
[1645375330350,1.41725328,2637.7,2637.5,12.70856816]
[1645375330556,1.41725328,2637.7,2637.5,13.00856816]
[1645375330751,1.41725328,2637.7,2637.5,1.48856816]
[1645375330951,1.41725328,2637.7,2637.5,1.18856816]
[1645375331601,1.41725328,2637.7,2637.6,11.52]
[1645375332404,1.41725328,2637.7,2637.4,0.00225725]
[1645375333210,1.41725328,2637.7,2637.0,0.00247535]
[1645375333605,1.41725328,2637.7,2637.4,0.00090163]
[1645375333805,1.41725328,2637.7,2637.6,11.52]
[1645375334205,1.41725328,2637.7,2637.5,0.96226224]
[1645375335089,1.41725328,2637.7,2637.5,1.26226224]
[1645375335287,1.41725328,2637.7,2637.6,11.52]
[1645375335482,1.41725328,2637.7,2637.6,11.82]
[1645375335681,1.41725328,2637.7,2637.6,12.82]
[1645375335890,1.41725328,2637.7,2637.5,0.96226224]
[1645375336683,1.41725328,2637.7,2637.6,11.52]
[1645375337286,1.41725328,2637.7,2637.5,0.96226224]
[1645375337586,1.41725328,2637.7,2637.6,11.52]
[1645375338388,1.41725328,2637.7,2637.5,12.78226224]
[1645375338798,1.41725328,2637.7,2637.5,12.48226224]
[1645375339197,1.41725328,2637.7,2637.5,12.78226224]
[1645375339600,1.41725328,2637.7,2637.5,0.96226224]
[1645375340008,1.41725328,2637.7,2637.5,12.48226224]
[1645375340199,1.41725328,2637.7,2637.5,12.78226224]
[1645375340398,1.41725328,2637.7,2637.5,12.48226224]
[1645375341004,1.41725328,2637.7,2637.5,13.08226224]
[1645375341197,1.41725328,2637.7,2637.5,12.78226224]
[1645375341598,1.41725328,2637.7,2637.5,13.08226224]
[1645375342001,1.41725328,2637.7,2637.5,12.48226224]
[1645375342456,1.41725328,2637.7,2637.5,13.08226224]
[1645375344645,1.41725328,2637.7,2637.6,12.52]
[1645375344947,1.41725328,2637.7,2637.6,12.82]
[1645375345545,1.41725328,2637.7,2637.6,11.52]
[1645375345750,1.41725328,2637.7,2637.4,0.00226299]
[1645375346596,1.41725328,2637.7,2636.7,0.88189308]
[1645375346597,0.13579167,2636.8,2636.7,0.88189308]
[1645375346796,0.13579167,2636.8,2636.7,12.39941773]
[1645375347810,0.5,2639.0,2636.9,11.52]
[1645375347999,0.00225858,2638.6,2637.5,11.52]
[1645375348201,0.00225858,2638.6,2637.2,11.52]
[1645375348497,0.25,2639.1,2637.6,11.52]
[1645375348498,0.14175858,2639.0,2637.6,11.52]
[1645375348701,0.14175858,2639.0,2637.6,11.82]
[1645375348897,0.14175858,2639.0,2637.6,12.12]
[1645375349296,0.13819997,2639.4,2637.6,12.12]
[1645375349297,0.1895,2639.3,2637.6,12.12]
[1645375349497,1.6102934,2639.2,2637.7,11.52]
[1645375349701,0.1895,2639.1,2637.7,1.0]
[1645375349974,3.10380277,2639.0,2637.7,1.06022632]
[1645375350257,0.3772,2638.8,2637.7,1.06022632]
[1645375350456,1.7997934,2638.7,2637.7,1.06022632]
[1645375350656,1.61042505,2638.6,2638.1,0.00226029]
[1645375350856,0.1895,2638.5,2638.1,0.00226029]
[1645375351058,0.1895,2638.6,2638.1,0.00226029]
[1645375351263,1.61048487,2638.5,2637.7,1.06022632]
[1645375351459,3.5,2638.4,2637.3,0.00247563]
[1645375351660,1.61059593,2638.3,2638.1,0.00226024]
[1645375351859,0.07233733,2637.7,2637.4,0.00904358]
[1645375352461,0.07233733,2637.7,2637.2,1.15082219]
[1645375353262,1.6109774,2637.6,2636.5,0.00247563]
[1645375353463,1.6109774,2637.6,2636.1,10.1134]
[1645375353464,0.1895,2637.5,2636.6,0.00247563]
[1645375353697,1.60409165,2637.4,2636.4,0.00247563]
[1645375354098,0.1895,2637.6,2636.9,0.00092751]
[1645375354296,0.1895,2637.6,2636.9,1.01545759]
[1645375354495,0.1895,2637.6,2637.0,0.00247563]
[1645375355100,0.07233733,2637.7,2637.2,0.00090236]
[1645375355299,0.07233733,2637.7,2637.3,0.899632]
[1645375355699,0.70508589,2637.6,2637.3,0.899632]
[1645375356101,0.70508589,2637.5,2637.3,0.899632]
[1645375356299,0.70508589,2637.5,2637.3,0.00090231]
[1645375356503,0.70508589,2637.4,2637.3,0.00090231]
[1645375357203,0.70508589,2637.6,2637.3,0.00090231]
[1645375357457,0.07233733,2637.7,2636.6,11.52]
[1645375357458,0.07233733,2637.7,2636.8,11.52]
[1645375357649,0.07233733,2637.7,2637.2,0.00099199]
[1645375357950,0.70508589,2637.5,2637.2,0.00099199]
[1645375358547,0.70508589,2637.5,2637.0,1.08380162]
[1645375358748,0.70508589,2637.5,2637.0,1.08627725]
[1645375358949,0.70508589,2637.5,2637.2,0.0023791]
[1645375359152,0.60508589,2637.5,2637.2,0.0023791]
[1645375359751,0.07233733,2637.7,2637.0,1.08627725]
[1645375359947,0.07233733,2637.7,2637.2,0.0023791]
[1645375360148,3.57233733,2637.7,2637.2,0.0023791]
[1645375360349,4.52234659,2637.7,2637.2,0.0023791]
[1645375360752,0.95000926,2637.6,2637.2,0.0023791]
[1645375360951,3.5,2637.5,2636.4,0.00247563]
[1645375361203,3.5,2637.5,2637.3,0.00224825]
[1645375361401,1.13950926,2637.6,2637.3,0.00224825]
[1645375361604,3.5,2637.5,2637.3,0.00224825]
[1645375361807,4.45000926,2637.5,2637.3,0.00224825]
[1645375362002,3.6895,2637.4,2637.3,0.00224825]
[1645375362203,3.5,2637.4,2636.4,0.00247563]
[1645375362404,3.5,2637.4,2637.3,0.00224826]
[1645375362605,0.95000926,2637.5,2637.3,0.00224826]
[1645375363211,0.07233733,2637.7,2637.3,0.00224826]
[1645375363405,1.02234659,2637.7,2636.8,0.00247563]
[1645375363803,1.02234659,2637.7,2637.3,0.00224826]
[1645375364605,1.02234659,2637.7,2636.4,0.00247563]
[1645375364805,0.07233733,2637.7,2636.4,0.00247563]
[1645375365053,1.02234659,2637.7,2637.4,0.00226736]
[1645375365246,0.07233733,2637.7,2637.4,0.00226736]
[1645375365945,0.07233733,2637.7,2637.2,0.91874698]
[1645375366149,0.07233733,2637.7,2637.4,0.00226734]
[1645375366348,0.26183733,2637.7,2637.4,0.00226734]
[1645375366545,0.26183733,2637.7,2637.0,0.04308624]
[1645375366546,0.07233733,2637.7,2637.0,0.96559257]
[1645375367846,0.07233733,2637.7,2636.7,1.0]
[1645375368245,0.07233733,2637.7,2636.7,0.3]
[1645375368445,0.07233733,2637.7,2636.9,0.00090738]
[1645375368706,3.57233733,2637.7,2636.9,0.00090738]
[1645375369203,0.07233733,2637.7,2636.9,0.00090738]
[1645375369402,0.07233733,2637.7,2636.9,0.98035385]
[1645375369607,0.07233733,2637.7,2636.9,0.98126123]
[1645375369804,0.07233733,2637.7,2636.9,10.10126123]
[1645375370207,0.07233733,2637.7,2636.9,10.70126123]
[1645375370509,0.07233733,2637.7,2636.9,10.40126123]
[1645375370706,0.07233733,2637.7,2636.9,10.40035385]
[1645375370906,0.00229622,2637.4,2636.9,10.40265056]
[1645375372007,0.07233733,2637.7,2636.9,10.40035385]
[1645375372212,0.00230873,2637.3,2637.1,9.12]
[1645375372456,0.00230873,2637.3,2637.1,9.42]
[1645375372653,0.00230873,2637.3,2637.1,0.3]
[1645375372855,0.00230873,2637.3,2637.1,11.82]
[1645375373156,0.00230873,2637.3,2637.1,0.3]
[1645375373356,0.00230871,2637.3,2636.9,1.58266297]
[1645375373755,0.00230871,2637.3,2637.0,11.52]
[1645375374155,1.61087029,2637.6,2637.0,11.82]
[1645375374354,1.61087029,2637.6,2637.4,1.07346252]
[1645375375455,1.61087029,2637.6,2637.4,12.59346252]
[1645375375657,1.61297944,2637.6,2637.4,12.59346252]
[1645375376201,1.61297944,2637.6,2637.4,1.07346252]
[1645375376404,1.61297944,2637.6,2636.9,0.30210976]
[1645375376603,1.61297944,2637.6,2636.9,11.82]
[1645375376604,1.61087029,2637.6,2636.9,11.82]
[1645375376803,1.61087029,2637.6,2637.1,11.52]
[1645375377003,1.61297944,2637.6,2637.1,11.52]
[1645375377204,1.61297944,2637.6,2637.1,11.82]
[1645375377409,1.61297944,2637.6,2637.4,12.37884129]
[1645375377905,0.00210915,2637.6,2637.4,12.37884129]
[1645375378104,0.00226262,2637.6,2637.4,0.85884129]
[1645375378304,1.61304128,2637.6,2637.4,0.85884129]
[1645375378603,0.00226262,2637.6,2637.4,0.85884129]
[1645375379003,0.07233733,2637.7,2637.4,1.15884129]
[1645375379206,1.61079555,2637.6,2637.4,1.45884129]
[1645375379403,1.61313682,2637.6,2637.4,0.6]
[1645375379605,1.61313682,2637.6,2636.9,11.52234195]
[1645375379803,1.61313682,2637.6,2637.1,11.82]
[1645375380358,1.61079555,2637.6,2637.1,11.82]
[1645375380551,1.61079555,2637.6,2637.4,12.5661986]
[1645375380751,0.00234132,2637.5,2637.4,12.5661986]
[1645375381154,0.00234132,2637.5,2637.4,12.8661986]
[1645375381353,1.61079555,2637.6,2637.4,13.1661986]
[1645375381556,0.07233733,2637.7,2637.4,13.1661986]
[1645375381753,0.00212509,2637.6,2637.4,13.1661986]
[1645375382354,1.6128954,2637.6,2637.4,13.1661986]
[1645375382552,0.00212509,2637.6,2637.4,13.1661986]
[1645375382756,1.61075989,2637.6,2637.4,13.1661986]
[1645375382952,0.00204165,2637.6,2637.4,13.1661986]
[1645375383151,0.00204165,2637.6,2637.4,1.6461986]
[1645375383352,1.61280497,2637.6,2637.5,11.52]
[1645375383552,1.61280497,2637.6,2637.4,1.6461986]
[1645375383804,1.61076332,2637.6,2637.4,1.6461986]
[1645375384006,1.61076332,2637.6,2636.9,0.00246307]
[1645375384210,1.61076332,2637.6,2636.9,0.00450534]
[1645375385006,1.61076332,2637.6,2636.9,0.00246307]
[1645375385509,0.00120686,2637.4,2636.9,0.00246307]
[1645375385905,0.00120686,2637.4,2636.8,1.10358565]
[1645375386305,1.61076332,2637.6,2636.8,1.10358565]
[1645375386508,1.61076332,2637.6,2636.7,1.5276]
[1645375386509,0.00207846,2637.2,2636.9,0.00207874]
[1645375387552,1.61076332,2637.5,2636.7,12.36060471]
[1645375387754,0.00122404,2637.2,2636.7,12.36060471]
[1645375388357,0.00122404,2637.2,2636.7,0.84060471]
[1645375388555,1.61076332,2637.2,2636.7,0.84060471]
[1645375388759,1.61076332,2637.1,2636.7,0.84060471]
[1645375388957,1.61076332,2637.0,2636.2,1.1993]
[1645375389156,1.61076332,2637.0,2636.0,5.0]
[1645375389457,1.61076332,2636.9,2636.2,11.82]
[1645375389653,0.00122401,2637.1,2636.2,11.82]
[1645375389854,1.61113605,2637.3,2636.2,11.77]
[1645375390057,1.61113605,2637.3,2636.4,1.01485758]
[1645375390257,0.00235426,2637.1,2636.4,1.01485758]
[1645375390857,0.00235426,2637.1,2636.5,11.52]
[1645375391055,1.61113605,2637.3,2636.5,11.52]
[1645375391299,1.61113605,2637.2,2636.5,11.52]
[1645375391501,0.00235436,2637.1,2636.6,0.00235482]
[1645375392200,1.61113605,2637.6,2636.5,11.52]
[1645375392403,1.61113605,2637.6,2636.7,11.52]
[1645375392603,1.61113605,2637.6,2636.7,11.52235478]
[1645375392604,0.00235441,2637.1,2636.7,11.52235478]
[1645375392902,0.00235441,2637.1,2636.8,12.52]
[1645375393502,2.17946609,2637.6,2636.9,1.16481585]
[1645375393700,0.00222207,2637.1,2637.0,11.52]
[1645375393902,0.00222207,2637.1,2637.0,11.82]
[1645375394501,0.00222207,2637.1,2636.9,1.46481585]
[1645375394702,1.61113605,2637.5,2636.9,1.46481585]
[1645375394949,0.00222208,2637.2,2637.0,11.52]
[1645375395149,0.00222208,2637.2,2637.0,11.82]
[1645375396052,1.61113605,2637.5,2637.3,0.85513421]
[1645375396249,1.71821775,2637.2,2637.1,0.3]
[1645375396455,3.3293538,2637.2,2636.9,11.52222236]
[1645375396750,1.6109073,2637.1,2636.9,0.00222236]
[1645375397150,1.71821775,2637.2,2636.5,15.88407963]
[1645375397350,1.72058158,2637.2,2637.1,0.90694067]
[1645375397952,1.72058158,2637.2,2637.1,1.20694067]
[1645375398150,1.72058158,2637.2,2637.1,13.02694067]
[1645375398350,1.71821775,2637.2,2637.1,13.02694067]
[1645375398555,1.71821775,2637.2,2637.1,1.20694067]
[1645375398804,3.32907682,2637.2,2637.1,1.20694067]
[1645375399603,3.32907682,2637.2,2637.1,0.3]
[1645375399803,3.32907682,2637.2,2636.9,0.00236416]
[1645375400303,1.61085907,2637.1,2636.9,0.00236416]
[1645375400702,1.61085907,2637.1,2636.3,11.52]
[1645375400904,1.61085907,2637.1,2636.9,0.86618846]
[1645375401106,1.6132952,2637.1,2636.9,0.86862483]